lending/lending_fUSD_20250408
["ID","MTS","AMOUNT","RATE_DAILY","PERIOD"]
[357541323,1744131192684,-173.73,0.00051918,2]
[357541324,1744131192693,-12500.0,0.00051922,16]
[357541325,1744131192703,-12500.0,0.00051931,16]
[357541326,1744131192712,-12500.0,0.0005194,16]
[357541327,1744131192722,-12500.0,0.00051948,16]
[357541328,1744131192731,-12500.0,0.00051957,16]
[357541329,1744131192741,-12500.0,0.00051966,16]
[357541330,1744131192751,-12500.0,0.00051975,16]
[357541331,1744131192761,-12500.0,0.00051984,16]
[357541332,1744131192771,-12500.0,0.00051992,16]
[357541333,1744131192780,-250.0,0.00052,10]
[357541334,1744131192790,-300.0,0.00052,2]
[357541335,1744131192799,-1000000.0,0.00052,120]
[357541336,1744131192809,-12500.0,0.00052001,16]
[357541337,1744131192819,-12500.0,0.0005201,16]
[357541338,1744131192828,-12500.0,0.00052019,16]
[357541339,1744131192837,-12500.0,0.00052028,16]
[357541340,1744131192847,-12500.0,0.00052036,16]
[357541341,1744131192856,-12500.0,0.00052045,16]
[357541342,1744131192865,-12500.0,0.00052054,16]
[357541343,1744131192875,-999.0,0.00052054,120]
[357541344,1744131192886,-180.6710151,0.00052464,2]
[357541345,1744131192896,-1000000.0,0.000525,120]
[357541346,1744131192906,-2000.0,0.000526,2]
[357541347,1744131192915,-377.39,0.0005261,2]
[357541348,1744131192924,-15433.1900901,0.00052964,2]
[357541349,1744131192934,-11620.0603214,0.00052964,2]
[357541350,1744131192944,-7806.9305526,0.00052964,2]
[357541351,1744131192953,-3993.8007838,0.00052964,2]
[357541352,1744131192963,-308.96993242,0.00052999,120]
[357541353,1744131192972,-984942.70561001,0.00053,120]
[357541354,1744131192982,-900.0,0.00053,54]
[357541355,1744131192992,-1000000.0,0.00053,120]
[357541356,1744131193001,-1000000.0,0.00053,120]
[357541357,1744131193011,-1000000.0,0.00053,120]
[357541358,1744131193020,-571.0,0.00053,120]
[357541359,1744131193029,-131047.16062122,0.00053,120]
[357541360,1744131193038,-500.0,0.00053,10]
[357541361,1744131193048,-19246.3198589,0.00053019,2]
[357541362,1744131193057,-5300.0,0.00053055,5]
[357541363,1744131193067,-1500.0,0.000531,120]
[357541364,1744131193077,-500.0,0.00053137,90]
[357541365,1744131193086,-20718.81,0.000532,120]
[357541366,1744131193096,-934.66286642,0.00053322,10]
[357541367,1744131193106,-2325.4843023,0.0005333,120]
[357541368,1744131193117,-500.0,0.00053411,90]
[357541369,1744131193128,-500.0,0.00053424,30]
[357541370,1744131193138,-1000.0,0.0005344,30]
[357541371,1744131193147,-1000.0,0.0005344,30]
[357541372,1744131193158,-1000.0,0.0005344,30]
[357541373,1744131193168,-1000.0,0.0005344,30]
[357541374,1744131193177,-1000.0,0.0005344,30]
[357541375,1744131193187,-1000.0,0.0005344,30]
[357541376,1744131193196,-1000.0,0.0005344,30]
[357541377,1744131193205,-1000.0,0.0005344,30]
[357541378,1744131193214,-1000.0,0.0005344,30]
[357541379,1744131193223,-1000.0,0.0005344,30]
[357541380,1744131193232,-1000.0,0.0005344,30]
[357541381,1744131193241,-1000.0,0.0005344,30]
[357541382,1744131193250,-1000.0,0.0005344,30]
[357541383,1744131193260,-1000.0,0.0005344,30]
[357541384,1744131193269,-1000.0,0.0005344,30]
[357541385,1744131193279,-1000.0,0.0005344,30]
[357541386,1744131193288,-1000.0,0.0005344,30]
[357541387,1744131193298,-1000.0,0.0005344,30]
[357541388,1744131193307,-1000.0,0.0005344,30]
[357541389,1744131193317,-1000.0,0.0005344,30]
[357541390,1744131193327,-809.06,0.0005344,30]
[357541391,1744131193336,-1000000.0,0.000535,120]
[357541392,1744131193346,-186.0253,0.000535,120]
[357541393,1744131193355,-366356.85633207,0.000535,120]
[357541394,1744131194626,-500.59539975,0.00027397,2]
[357541395,1744131194637,-500.0,0.00027397,2]
[357541396,1744131194647,-500.0,0.00027671,2]
[357541397,1744131194657,-323.51073606,0.00027945,2]
[357541398,1744131194667,-872.95,0.00028219,2]
[357541399,1744131194676,-872.95,0.00028493,2]
[357541400,1744131194685,-342.82396419,0.00028767,2]
[357541401,1744131194696,-407.82836451,0.00028767,2]
[357541402,1744131194707,-122.2976713,0.00028767,2]
[357541403,1744131194717,-872.95,0.00029041,2]
[357541404,1744131194725,-292.40292409,0.00029315,2]
[357541405,1744131194737,-580.54707591,0.00029315,2]
[357541406,1744131194746,-448.93091262,0.00029589,2]
[357541407,1744131194765,-51.06908738,0.00029589,2]
[357541408,1744131194774,-872.95,0.00029589,2]
[357541409,1744131194783,-964.81,0.00029863,2]
[357541410,1744131194792,-500.0,0.00029863,2]
[357541411,1744131194801,-872.95,0.00029863,2]
[357541412,1744131194810,-185.67610553,0.000299,2]
[357541413,1744131194821,-1183.67,0.00030136,2]
[357541414,1744131194830,-1092.38,0.00030136,2]
[357541415,1744131194840,-645.26460534,0.00030136,2]
[357541416,1744131194849,-964.81,0.00030136,2]
[357541417,1744131194859,-451.08820176,0.00030136,2]
[357541418,1744131194879,-404.21922039,0.00030136,2]
[357541419,1744131204958,-17.64257785,0.00030136,2]
[357541420,1744131204968,-1183.67,0.0003041,2]
[357541421,1744131204978,-1092.38,0.0003041,2]
[357541422,1744131204987,-964.81,0.0003041,2]
[357541423,1744131204997,-872.95,0.0003041,2]
[357541424,1744131205006,-1092.38,0.00030684,2]
[357541425,1744131205016,-1183.67,0.00030684,2]
[357541426,1744131205025,-964.81,0.00030684,2]
[357541427,1744131205034,-872.95,0.00030684,2]
[357541428,1744131205044,-445.0,0.00030869,2]
[357541429,1744131205054,-348.14,0.00030869,2]
[357541430,1744131205064,-150.0,0.00030869,2]
[357541431,1744131205073,-231.20214971,0.00030958,2]
[357541432,1744131205083,-1092.38,0.00030958,2]
[357541433,1744131205093,-1183.67,0.00030958,2]
[357541434,1744131205103,-964.81,0.00030958,2]
[357541435,1744131205113,-500.0,0.00031232,2]
[357541436,1744131205124,-1183.67,0.00031232,2]
[357541437,1744131205134,-1092.38,0.00031232,2]
[357541438,1744131205143,-964.81,0.00031232,2]
[357541439,1744131205154,-500.0,0.00031506,2]
[357541440,1744131205164,-1183.67,0.00031506,2]
[357541441,1744131205173,-1092.38,0.00031506,2]
[357541442,1744131205183,-964.81,0.00031506,2]
[357541443,1744131205194,-500.0,0.0003178,2]
[357541444,1744131205205,-1183.67,0.0003178,2]
[357541445,1744131205215,-1092.38,0.0003178,2]
[357541446,1744131205225,-964.81,0.0003178,2]
[357541447,1744131205235,-500.0,0.00032054,2]
[357541448,1744131205244,-1183.67,0.00032054,2]
[357541449,1744131205254,-1092.38,0.00032054,2]
[357541450,1744131205264,-964.81,0.00032054,2]
[357541451,1744131205273,-500.0,0.00032328,2]
[357541452,1744131205284,-1183.67,0.00032328,2]
[357541453,1744131205294,-1092.38,0.00032328,2]
[357541454,1744131205305,-500.0,0.00032602,2]
[357541455,1744131205315,-1183.67,0.00032602,2]
[357541456,1744131205326,-500.0,0.00032876,2]
[357541457,1744131205336,-1183.67,0.00032876,2]
[357541458,1744131205346,-725.42,0.0003315,2]
[357541459,1744131205355,-751.14,0.0003315,2]
[357541460,1744131205365,-500.0,0.0003315,2]
[357541461,1744131205374,-159.45,0.00033335,2]
[357541462,1744131205385,-639.27,0.00033424,2]
[357541463,1744131205395,-725.42,0.00033424,2]
[357541464,1744131205405,-751.14,0.00033424,2]
[357541465,1744131205415,-247.39867379,0.00033424,2]
[357541466,1744131205426,-639.3916589,0.00033698,2]
[357541467,1744131205436,-751.36415307,0.00033698,2]
[357541468,1744131205446,-725.6,0.00033698,2]
[357541469,1744131205455,-785.62,0.00036301,2]
[357541470,1744131205466,-445.7,0.00040137,2]
[357541471,1744131205476,-633643.14366793,0.000535,120]
[357541472,1744131205487,-1000000.0,0.000535,120]
[357541473,1744131205497,-1000000.0,0.000535,120]
[357541474,1744131205506,-271.22109,0.000535,120]
[357541475,1744131205516,-4143.76,0.000535,120]
[357541476,1744131205526,-4185.33,0.000535,120]
[357541477,1744131205537,-2055.37,0.000535,120]
[357541478,1744131205548,-150.0,0.00053566,120]
[357541479,1744131205558,-535.97,0.00053584,120]
[357541480,1744131205568,-7409.35309471,0.0005368,120]
[357541481,1744131205578,-500.0,0.00053685,90]
[357541482,1744131205588,-5970.77,0.000538,120]
[357541483,1744131205598,-3567.24,0.000538,120]
[357541484,1744131205608,-1426.9,0.000538,120]
[357541485,1744131205619,-20718.81,0.000538,120]
[357541486,1744131205629,-20718.81,0.000538,120]
[357541487,1744131205640,-4143.76,0.000538,120]
[357541488,1744131205655,-4185.33,0.000538,120]
[357541489,1744131205665,-1796.57,0.00053905,101]
[357541490,1744131205677,-500.0,0.00053959,90]
[357541491,1744131205688,-50000.0,0.00054,54]
[357541492,1744131205699,-200.0,0.00054,120]
[357541493,1744131205710,-1000000.0,0.00054,120]
[357541494,1744131205720,-1000000.0,0.00054,120]
[357541495,1744131205730,-900.0,0.00054,55]
[357541496,1744131205741,-1000000.0,0.00054,120]
[357541497,1744131205751,-1000000.0,0.00054,120]
[357541498,1744131205761,-383496.71180635,0.00054,30]
[357541499,1744131205771,-1000000.0,0.00054,120]
[357541500,1744131205781,-1000000.0,0.00054,120]
[357541501,1744131205792,-1000000.0,0.00054,120]
[357541502,1744131205803,-1000000.0,0.00054,120]
[357541503,1744131205812,-1000000.0,0.00054,120]
[357541504,1744131205821,-600.0,0.00054,120]
[357541505,1744131205831,-5970.77,0.00054,120]
[357541506,1744131206975,-3567.24,0.00054,120]
[357541507,1744131206995,-500.0,0.00054,10]
[357541508,1744131207005,-2000.0,0.00054,120]
[357541509,1744131207015,-263.40394377,0.00054,120]
[357541510,1744131207025,-741.25196215,0.00054,120]
[357541511,1744131207034,-150.0,0.00054074,120]
[357541512,1744131207044,-936.52,0.00054233,90]
[357541513,1744131207053,-150.0,0.00054268,120]
[357541514,1744131207063,-166.0,0.0005437,120]
[357541515,1744131207072,-3000.0,0.0005444,32]
[357541516,1744131207081,-1000000.0,0.000545,120]
[357541517,1744131207090,-687.07384335,0.000545,30]
[357541518,1744131207100,-776022.71,0.0005469,120]
[357541519,1744131207109,-2000.0,0.000547,120]
[357541520,1744131207118,-2000.0,0.000547,120]
[357541521,1744131207129,-2000.0,0.000547,120]
[357541522,1744131207138,-2000.0,0.000547,120]
[357541523,1744131207148,-2000.0,0.000547,120]
[357541524,1744131207158,-2000.0,0.000547,120]
[357541525,1744131207168,-2000.0,0.000547,120]
[357541526,1744131207177,-2000.0,0.000547,120]
[357541527,1744131207187,-2000.0,0.000547,120]
[357541528,1744131207197,-2000.0,0.000547,120]
[357541529,1744131207208,-2000.0,0.000547,120]
[357541530,1744131207219,-2000.0,0.000547,120]
[357541531,1744131207228,-2000.0,0.000547,120]
[357541532,1744131207238,-2000.0,0.000547,120]
[357541533,1744131207247,-2000.0,0.000547,120]
[357541534,1744131207256,-2000.0,0.000547,120]
[357541535,1744131207266,-2000.0,0.000547,120]
[357541536,1744131207275,-2000.0,0.000547,120]
[357541537,1744131207284,-2000.0,0.000547,120]
[357541538,1744131207294,-2000.0,0.000547,120]
[357541539,1744131207304,-2000.0,0.000547,120]
[357541540,1744131207314,-1000.0,0.00054767,120]
[357541541,1744131207323,-1000.0,0.00054767,120]
[357541542,1744131207332,-1000.0,0.00054767,120]
[357541543,1744131207342,-1000.0,0.00054767,120]
[357541544,1744131207352,-1000.0,0.00054767,120]
[357541545,1744131207361,-1000.0,0.00054767,120]
[357541546,1744131207371,-1000.0,0.00054767,120]
[357541547,1744131207381,-1000.0,0.00054767,120]
[357541548,1744131207390,-1000.0,0.00054767,120]
[357541549,1744131207401,-1000.0,0.00054767,120]
[357541550,1744131207411,-1000.0,0.00054767,120]
[357541551,1744131207420,-1000.0,0.00054767,120]
[357541552,1744131207430,-1000.0,0.00054767,120]
[357541553,1744131207440,-1000.0,0.00054767,120]
[357541554,1744131207449,-1000.0,0.00054767,120]
[357541555,1744131207459,-1000.0,0.00054767,120]
[357541556,1744131207469,-1000.0,0.00054767,120]
[357541557,1744131207478,-1000.0,0.00054767,120]
[357541558,1744131207488,-1000.0,0.00054767,120]
[357541559,1744131207497,-1000.0,0.00054767,120]
[357541560,1744131207507,-1000.0,0.00054767,120]
[357541561,1744131207517,-1000.0,0.00054767,120]
[357541562,1744131207526,-1000.0,0.00054767,120]
[357541563,1744131207535,-674.57,0.00054767,120]
[357541564,1744131207545,-5000.0,0.0005479,120]
[357541565,1744131207555,-500.0,0.00054794,120]
[357541566,1744131207565,-500.0,0.00054794,120]
[357541567,1744131207574,-500.0,0.00054794,120]
[357541568,1744131207584,-621.67545783,0.00054794,120]
[357541569,1744131207593,-819.15,0.00054794,120]
[357541570,1744131207603,-310.87463177,0.00054794,2]
[357541571,1744131207612,-2753.64,0.00054794,2]
[357541572,1744131207622,-2753.64,0.00054794,2]
[357541573,1744131207631,-2753.64,0.00054794,2]
[357541574,1744131207640,-2753.64,0.00054794,2]
[357541575,1744131207651,-2753.64,0.00054794,2]
[357541576,1744131207661,-2753.64,0.00054794,2]
[357541577,1744131207671,-2753.64,0.00054794,2]
[357541578,1744131207681,-2753.64,0.00054794,2]
[357541579,1744131207690,-2753.64,0.00054794,2]
[357541580,1744131207699,-2753.64,0.00054794,2]
[357541581,1744131207708,-2753.64,0.00054794,2]
[357541582,1744131207718,-2753.64,0.00054794,2]
[357541583,1744131207727,-2753.64,0.00054794,2]
[357541584,1744131207736,-2753.64,0.00054794,2]
[357541585,1744131207746,-2753.64,0.00054794,2]
[357541586,1744131207755,-500.0,0.00054794,2]
[357541587,1744131207765,-2753.64,0.00054794,2]
[357541588,1744131207774,-500.0,0.00054794,2]
[357541589,1744131207784,-2753.64,0.00054794,2]
[357541590,1744131207794,-500.0,0.00054794,2]
[357541591,1744131207803,-2753.64,0.00054794,2]
[357541592,1744131207812,-2753.64,0.00054794,2]
[357541593,1744131207821,-2753.64,0.00054794,2]
[357541594,1744131207830,-2753.64,0.00054794,2]
[357541595,1744131207839,-2753.64,0.00054794,2]
[357541596,1744131207849,-2753.64,0.00054794,2]
[357541597,1744131207858,-2753.819071,0.00054794,2]
[357541598,1744131207867,-999.0,0.00054794,120]
[357541599,1744131207877,-1851.47,0.00054794,120]
[357541600,1744131207886,-1048.3642403,0.00054794,120]
[357541601,1744131207898,-1851.47,0.00054794,120]
[357541602,1744131207907,-1851.47,0.00054794,120]
[357541603,1744131207916,-1851.47,0.00054794,120]
[357541604,1744131207925,-1851.47,0.00054794,120]
[357541605,1744131207934,-1851.47,0.00054794,120]
[357541606,1744131207943,-1851.47,0.00054794,120]
[357541607,1744131207953,-1851.47,0.00054794,120]
[357541608,1744131207962,-1851.47,0.00054794,120]
[357541609,1744131207971,-1851.47,0.00054794,120]
[357541610,1744131207981,-1851.47,0.00054794,120]
[357541611,1744131207990,-1851.47,0.00054794,120]
[357541612,1744131207999,-1851.47,0.00054794,120]
[357541613,1744131208009,-1851.47,0.00054794,120]
[357541614,1744131208019,-1851.47,0.00054794,120]
[357541615,1744131208028,-1851.47,0.00054794,120]
[357541616,1744131208037,-1851.47,0.00054794,120]
[357541617,1744131208046,-1851.47,0.00054794,120]
[357541618,1744131208055,-1851.47,0.00054794,120]
[357541619,1744131208065,-1851.47,0.00054794,120]
[357541620,1744131208074,-1851.47,0.00054794,120]
[357541621,1744131208084,-1851.47,0.00054794,120]
[357541622,1744131208093,-1851.47,0.00054794,120]
[357541623,1744131208103,-1851.52247406,0.00054794,120]
[357541624,1744131208113,-676.44996856,0.00054795,120]
[357541625,1744131208122,-226.246,0.00054795,120]
[357541626,1744131208135,-700.0,0.00054795,28]
[357541627,1744131208144,-700.0,0.00054795,28]
[357541628,1744131208154,-4000.0,0.00054795,60]
[357541629,1744131208165,-151.0,0.00054795,120]
[357541630,1744131208175,-151.0,0.00054795,120]
[357541631,1744131208184,-151.0,0.00054795,120]
[357541632,1744131208193,-151.0,0.00054795,120]
[357541633,1744131208202,-151.0,0.00054795,120]
[357541634,1744131208212,-242.141746,0.00054795,120]
[357541635,1744131208222,-1000.0,0.00054799,120]
[357541636,1744131208232,-200.0,0.000548,120]
[357541637,1744131208242,-173.42534266,0.000548,120]
[357541638,1744131208251,-377.39,0.00054874,2]
[357541639,1744131208261,-291.21826586,0.00054936,120]
[357541640,1744131208271,-50000.0,0.00055,55]
[357541641,1744131208280,-211.12686517,0.00055,120]
[357541642,1744131208290,-580.0,0.00055,100]
[357541643,1744131208299,-1000000.0,0.00055,120]
[357541644,1744131208308,-500.0,0.00055,120]
[357541645,1744131208318,-500.00193,0.00055,5]
[357541646,1744131208327,-1000000.0,0.00055,120]
[357541647,1744131208336,-900.0,0.00055,56]
[357541648,1744131208345,-1000000.0,0.00055,120]
[357541649,1744131208355,-82036.09447738,0.00055,5]
[357541650,1744131208364,-1000000.0,0.00055,120]
[357541651,1744131208373,-1000000.0,0.00055,120]
[357541652,1744131208383,-1000000.0,0.00055,120]
[357541653,1744131208392,-150.0,0.00055,2]
[357541654,1744131208403,-1000000.0,0.00055,120]
[357541655,1744131208412,-201.0,0.00055,120]
[357541656,1744131208422,-156.4356882,0.00055,30]
[357541657,1744131208432,-1000.0,0.00055,2]
[357541658,1744131208441,-500.0,0.00055,10]
[357541659,1744131208450,-797342.29732861,0.00055,30]
[357541660,1744131208460,-6004.6463225,0.00055,120]
[357541661,1744131208470,-1000.0,0.00055,15]
[357541662,1744131208479,-499701.36720323,0.00055,120]
[357541663,1744131208489,-25000.0,0.00055,120]
[357541664,1744131208498,-500.0,0.00055,120]
[357541665,1744131208507,-350.0,0.00055,120]
[357541666,1744131208516,-16360.76887221,0.00055,120]
[357541667,1744131208526,-150.0,0.00055155,120]
[357541668,1744131208536,-2000.0,0.000553,90]
[357541669,1744131208545,-150.0,0.00055395,120]
[357541670,1744131208555,-1000.0,0.000554,120]
[357541671,1744131208565,-1036.16142453,0.000555,120]
[357541672,1744131208574,-1000000.0,0.000555,120]
[357541673,1744131208583,-3577.85,0.000557,57]
[357541674,1744131208592,-3577.85,0.000557,57]
[357541675,1744131208601,-3577.85,0.000557,57]
[357541676,1744131208610,-3577.85,0.000557,57]
[357541677,1744131208619,-3577.85,0.000557,57]
[357541678,1744131208627,-3577.85,0.000557,57]
[357541679,1744131208636,-3577.85,0.000557,57]
[357541680,1744131208645,-3577.85,0.000557,57]
[357541681,1744131208655,-3577.85,0.000557,57]
[357541682,1744131208664,-3577.85,0.000557,57]
[357541683,1744131208674,-3577.85,0.000557,57]
[357541684,1744131208685,-3577.85,0.000557,57]
[357541685,1744131208694,-3577.85,0.000557,57]
[357541686,1744131208703,-3577.85,0.000557,57]
[357541687,1744131208712,-3577.85,0.000557,57]
[357541688,1744131208722,-3577.85,0.000557,57]
[357541689,1744131208731,-3577.85,0.000557,57]
[357541690,1744131208740,-3577.85,0.000557,57]
[357541691,1744131208750,-3577.85,0.000557,57]
[357541692,1744131208759,-3577.85,0.000557,57]
[357541693,1744131208768,-3577.85,0.000557,57]
[357541694,1744131208778,-3577.85,0.000557,57]
[357541695,1744131208787,-3577.85,0.000557,57]
[357541696,1744131208797,-3577.85,0.000557,57]
[357541697,1744131208806,-259.2,0.00055833,120]
[357541698,1744131208815,-198.28,0.00055833,120]
[357541699,1744131208825,-50000.0,0.00056,56]
[357541700,1744131208835,-500.0,0.00056,120]
[357541701,1744131208843,-900.0,0.00056,57]
[357541702,1744131208853,-1000000.0,0.00056,120]
[357541703,1744131208864,-1000000.0,0.00056,120]
[357541704,1744131208874,-1000000.0,0.00056,120]
[357541705,1744131208883,-1000000.0,0.00056,120]
[357541706,1744131208893,-1000000.0,0.00056,120]
[357541707,1744131208904,-1000000.0,0.00056,120]
[357541708,1744131208914,-500.0,0.00056,120]
[357541709,1744131208924,-519.17,0.00056,10]
[357541710,1744131208933,-2471.85,0.00056,60]
[357541711,1744131208942,-2500.0,0.00056,120]
[357541712,1744131208952,-2500.0,0.00056,120]
[357541713,1744131208961,-86337.0,0.00056,120]
[357541714,1744131208971,-6295.41,0.00056,60]
[357541715,1744131208980,-5001.81023348,0.00056,120]
[357541716,1744131208990,-1446.01692747,0.00056145,15]
[357541717,1744131209000,-819.15,0.00056164,120]
[357541718,1744131209010,-150.0,0.00056237,120]
[357541719,1744131209020,-1000000.0,0.000565,120]
[357541720,1744131209030,-473.47,0.00056789,7]
[357541721,1744131209039,-2000.0,0.00056789,7]
[357541722,1744131209049,-3000.0,0.00056789,7]
[357541723,1744131209058,-3000.0,0.0005689,32]
[357541724,1744131209067,-440.0,0.00056986,120]
[357541725,1744131209076,-50000.0,0.00057,57]
[357541726,1744131209086,-900.0,0.00057,58]
[357541727,1744131209095,-1000000.0,0.00057,120]
[357541728,1744131209104,-1052.84196594,0.00057,2]
[357541729,1744131209114,-1000000.0,0.00057,120]
[357541730,1744131209123,-1000000.0,0.00057,120]
[357541731,1744131209136,-1000000.0,0.00057,120]
[357541732,1744131209145,-1000000.0,0.00057,120]
[357541733,1744131209156,-2500.0,0.00057,120]
[357541734,1744131209165,-2500.0,0.00057,120]
[357541735,1744131209174,-2500.0,0.00057,120]
[357541736,1744131209183,-2500.0,0.00057,120]
[357541737,1744131209193,-377.39,0.00057138,2]
[357541738,1744131209203,-150.0,0.00057318,120]
[357541739,1744131209212,-1000000.0,0.000575,120]
[357541740,1744131209221,-5000.0,0.0005753,120]
[357541741,1744131209230,-500.0,0.00057534,120]
[357541742,1744131209239,-819.15,0.00057534,120]
[357541743,1744131209248,-999.0,0.00057534,120]
[357541744,1744131209257,-5970.77,0.000579,120]
[357541745,1744131209266,-3567.24,0.000579,120]
[357541746,1744131209275,-50000.0,0.00058,58]
[357541747,1744131209284,-380.0,0.00058,90]
[357541748,1744131209293,-630.0,0.00058,99]
[357541749,1744131209302,-500.0,0.00058,120]
[357541750,1744131209311,-900.0,0.00058,59]
[357541751,1744131209320,-1000000.0,0.00058,120]
[357541752,1744131209330,-500.0,0.00058,120]
[357541753,1744131209338,-181.719481,0.00058,120]
[357541754,1744131209347,-500.0,0.00058,120]
[357541755,1744131209356,-4643.41491485,0.00058,120]
[357541756,1744131209365,-1000000.0,0.00058,120]
[357541757,1744131209375,-209691.08573645,0.00058,120]
[357541758,1744131209384,-404474.46280173,0.00058,120]
[357541759,1744131209393,-607.72,0.00058,90]
[357541760,1744131209403,-2500.0,0.00058,120]
[357541761,1744131209413,-2500.0,0.00058,120]
[357541762,1744131209422,-2500.0,0.00058,120]
[357541763,1744131209431,-3626.90169137,0.00058,90]
[357541764,1744131209440,-535.97,0.00058062,120]
[357541765,1744131209449,-500.0,0.00058082,120]
[357541766,1744131209458,-163.63,0.00058082,30]
[357541767,1744131209467,-150.0,0.00058082,30]
[357541768,1744131209476,-150.0,0.00058082,30]
[357541769,1744131209485,-150.0,0.00058082,30]
[357541770,1744131209494,-150.0,0.00058082,30]
[357541771,1744131209503,-150.0,0.00058082,30]
[357541772,1744131209512,-150.0,0.00058082,30]
[357541773,1744131209522,-150.0,0.00058082,30]
[357541774,1744131209531,-150.0,0.00058082,30]
[357541775,1744131209541,-2000.0,0.000581,90]
[357541776,1744131209551,-14000.0,0.0005815,120]
[357541777,1744131209561,-150.0,0.000584,120]
[357541778,1744131209570,-1000.0,0.000584,120]
[357541779,1744131209580,-1000000.0,0.000585,120]
[357541780,1744131209589,-500.0,0.0005863,120]
[357541781,1744131209599,-150.03491966,0.000587,120]
[357541782,1744131209608,-310.65016,0.000588,120]
[357541783,1744131209618,-340.89438,0.000588,120]
[357541784,1744131209628,-186.0253,0.000588,120]
[357541785,1744131209637,-819.15,0.00058904,120]
[357541786,1744131209646,-3000.0,0.0005896,32]
[357541787,1744131209659,-50000.0,0.00059,59]
[357541788,1744131209669,-900.0,0.00059,60]
[357541789,1744131209679,-1000000.0,0.00059,120]
[357541790,1744131209689,-1000000.0,0.00059,120]
[357541791,1744131209699,-1000000.0,0.00059,120]
[357541792,1744131209709,-1000000.0,0.00059,120]
[357541793,1744131209719,-1000000.0,0.00059,120]
[357541794,1744131209729,-1000000.0,0.00059,120]
[357541795,1744131209739,-2500.0,0.00059,120]
[357541796,1744131209748,-2500.0,0.00059,120]
[357541797,1744131209759,-2500.0,0.00059,120]
[357541798,1744131209768,-2500.0,0.00059,120]
[357541799,1744131209778,-2500.0,0.00059,120]
[357541800,1744131209788,-2500.0,0.00059,120]
[357541801,1744131209798,-2500.0,0.00059,120]
[357541802,1744131209807,-2500.0,0.00059,120]
[357541803,1744131209818,-500.0,0.00059178,120]
[357541804,1744131209829,-377.39,0.00059401,2]
[357541805,1744131209840,-150.0,0.00059481,120]
[357541806,1744131209849,-1000000.0,0.000595,120]
[357541807,1744131209859,-3577.85,0.000595,60]
[357541808,1744131209870,-3577.85,0.000595,60]
[357541809,1744131209880,-3577.85,0.000595,60]
[357541810,1744131209890,-3577.85,0.000595,60]
[357541811,1744131209903,-3577.85,0.000595,60]
[357541812,1744131209913,-3577.85,0.000595,60]
[357541813,1744131209923,-3577.85,0.000595,60]
[357541814,1744131209933,-3577.85,0.000595,60]
[357541815,1744131209943,-3577.85,0.000595,60]
[357541816,1744131209954,-3577.85,0.000595,60]
[357541817,1744131209965,-3577.85,0.000595,60]
[357541818,1744131209976,-3577.85,0.000595,60]
[357541819,1744131209986,-3577.85,0.000595,60]
[357541820,1744131209996,-3577.85,0.000595,60]
[357541821,1744131210007,-3577.85,0.000595,60]
[357541822,1744131210017,-3577.85,0.000595,60]